bitfinex/quotes_ETHUSD_20250314
["timestamp","ask_amount","ask_price","bid_price","bid_amount"]
[1741951497382,5.3070304,1907.9,1907.6,6.0721]
[1741951498157,0.0655204,1907.9,1907.6,6.0721]
[1741951498358,0.0655204,1907.9,1907.6,7.21211354]
[1741951498555,10.54791043,1908.0,1907.6,7.21211354]
[1741951498758,5.24109,1908.0,1907.7,5.24179]
[1741951499146,0.06552036,1908.1,1907.8,5.2416]
[1741951499656,0.06552036,1908.1,1907.7,5.24179]
[1741951499860,5.30642036,1908.1,1907.8,0.524179]
[1741951500221,10.54742036,1908.1,1907.7,5.24177]
[1741951500426,5.30642036,1908.1,1907.7,5.29418334]
[1741951500628,8.24058,1908.2,1907.8,6.01993]
[1741951500827,5.2409,1908.1,1907.8,0.7783]
[1741951501250,5.30614585,1908.2,1907.8,6.01979]
[1741951501456,5.30615429,1908.2,1907.8,6.621749]
[1741951501853,5.30615429,1908.2,1907.8,11.863209]
[1741951502757,5.30615429,1908.2,1907.8,11.863229]
[1741951502948,5.30615429,1908.2,1907.9,5.24135]
[1741951503147,0.06551429,1908.2,1907.9,5.2412]
[1741951503347,6.02,1908.3,1908.1,0.7573]
[1741951503658,8.24016,1908.4,1908.1,5.99801]
[1741951503866,8.30566467,1908.4,1908.1,0.7573]
[1741951504760,5.30566467,1908.4,1908.1,0.7573]
[1741951505677,5.30564467,1908.4,1908.1,0.7573]
[1741951505871,0.06550476,1908.3,1908.1,1.409542]
[1741951506176,0.06550476,1908.3,1908.1,0.652242]
[1741951506374,5.30577476,1908.3,1908.1,0.652242]
[1741951506557,5.24054,1908.2,1907.9,0.7944]
[1741951506763,5.30577476,1908.3,1907.9,6.03573]
[1741951507771,5.30577476,1908.3,1908.0,5.24105]
[1741951507772,0.06550476,1908.3,1908.0,5.24105]
[1741951507931,5.24,1908.4,1908.1,0.809]
[1741951508439,5.24033,1908.3,1908.1,0.809]
[1741951508638,6.08723502,1908.3,1907.9,6.05693]
[1741951508845,11.32768502,1908.3,1908.0,0.605693]
[1741951509079,5.2406,1908.2,1907.9,0.8156]
[1741951509678,5.30587247,1908.3,1907.9,11.29819]
[1741951509978,5.30587247,1908.3,1907.9,6.05684]
[1741951510184,0.06551061,1908.4,1908.0,5.24097]
[1741951510479,0.06551061,1908.4,1908.2,0.8162]
[1741951511038,5.23986,1908.5,1908.2,0.8162]
[1741951511249,5.3053621,1908.5,1908.2,1.421885]
[1741951511748,5.3053621,1908.5,1908.2,6.662315]
[1741951511945,23.36927,1908.8,1908.4,5.23985]
[1741951512148,0.06549433,1908.7,1908.5,0.801]
[1741951512471,5.30469433,1908.7,1908.5,0.801]
[1741951513055,5.23945,1908.6,1908.3,0.7794]
[1741951513263,5.3053266,1908.5,1908.1,5.99387]
[1741951513573,10.5451766,1908.5,1908.1,5.99387]
[1741951514375,5.3053266,1908.5,1908.1,11.23451]
[1741951515174,5.3053266,1908.5,1908.1,5.99384]
[1741951515376,10.5452166,1908.5,1908.1,5.99384]
[1741951515677,10.5452166,1908.5,1908.1,6.593224]
[1741951516441,11.3365166,1908.5,1908.1,6.593224]
[1741951516642,11.27102,1908.5,1908.1,6.593224]
[1741951517772,6.03113,1908.5,1908.1,11.833854]
[1741951517979,6.09663084,1908.5,1908.1,11.833854]
[1741951518656,5.23983,1908.5,1908.2,5.24051]
[1741951518846,5.3049708,1908.6,1908.2,10.4809]
[1741951519046,5.23986,1908.5,1908.2,1.1833484]
[1741951519908,0.0655008,1908.6,1908.1,0.7532]
[1741951520042,10.48029,1908.4,1908.1,0.7532]
[1741951520245,10.48029,1908.4,1908.0,5.24099]
[1741951520246,5.24027,1908.3,1908.0,6.01279]
[1741951520452,5.30579227,1908.3,1907.8,5.843359]
[1741951520652,5.24063,1908.2,1907.9,5.24127]
[1741951520873,5.24063,1908.2,1907.9,6.4269129]
[1741951521283,5.24054,1908.2,1907.8,1.373779]
[1741951521474,5.24092,1908.1,1907.8,6.615319]
[1741951521780,5.24054,1908.2,1907.8,6.615319]
[1741951523047,5.24054,1908.2,1907.8,6.615309]
[1741951523250,5.24054,1908.2,1907.9,5.9028409]
[1741951524381,5.30580115,1908.3,1907.9,5.9028409]
[1741951524582,0.06551115,1908.3,1907.9,0.6615309]
[1741951524749,6.02,1908.5,1908.3,0.7859]
[1741951525664,5.23953,1908.6,1908.3,0.7859]
[1741951525856,5.30502702,1908.6,1908.3,0.7859]
[1741951526251,5.23972,1908.5,1908.2,6.04457]
[1741951526459,10.54467702,1908.6,1908.2,7.173105]
[1741951526656,5.30502702,1908.6,1908.2,7.173105]
[1741951526882,0.06549702,1908.6,1908.2,0.8043]
[1741951527085,5.23989,1908.5,1908.2,0.8043]
[1741951527285,5.24,1908.4,1908.2,0.8043]
[1741951527593,5.23989,1908.5,1908.2,0.8043]
[1741951527884,10.47979,1908.5,1908.2,0.8043]
[1741951528053,5.23989,1908.5,1908.2,0.8043]
[1741951530564,10.47981,1908.5,1908.2,0.8043]
[1741951530893,5.24009,1908.4,1908.1,5.24066]
[1741951531071,5.24009,1908.4,1908.1,6.47845073]
[1741951533094,6.01669,1908.5,1908.1,11.71906073]
[1741951533292,6.08219022,1908.5,1908.1,11.71906073]
[1741951533492,11.32214022,1908.5,1908.1,6.47840073]
[1741951533693,11.25664,1908.5,1908.1,6.47840073]
[1741951533900,11.25657,1908.5,1908.1,6.47840073]
[1741951534496,6.01668,1908.5,1908.1,11.71904073]
[1741951534667,11.32206081,1908.5,1908.1,6.47840073]
[1741951534881,5.24004,1908.4,1908.1,6.47840073]
[1741951535493,6.01652,1908.5,1908.2,5.88832007]
[1741951535796,5.23972,1908.5,1908.2,5.88832007]
[1741951536984,0.06550082,1908.6,1908.3,6.02333]
[1741951537183,10.54402699,1908.7,1908.3,6.02333]
[1741951537398,5.23948,1908.6,1908.3,6.02333]
[1741951537598,5.23948,1908.6,1908.3,6.69044701]
[1741951538596,5.30466699,1908.7,1908.3,11.93054701]
[1741951539464,5.30466699,1908.7,1908.3,11.93049701]
[1741951540198,0.06549699,1908.7,1908.3,1.45031701]
[1741951540496,8.30443322,1908.8,1908.5,5.23953]
[1741951540699,13.54353322,1908.8,1908.4,5.2399]
[1741951540865,13.47804,1908.8,1908.4,5.2399]
[1741951541061,0.06549256,1908.7,1908.4,5.2399]
[1741951541265,5.30467256,1908.7,1908.4,5.2399]
[1741951542169,10.54402256,1908.7,1908.3,6.02333]
[1741951542372,5.30467256,1908.7,1908.3,11.26347]
[1741951542698,5.23964,1908.6,1908.4,0.07780055]
[1741951542895,5.30520876,1908.5,1908.4,0.07780055]
[1741951543468,5.23971,1908.5,1908.4,0.07780055]
[1741951544596,6.00124,1908.6,1908.4,0.07780055]
[1741951544800,5.23964,1908.6,1908.4,0.07780055]
[1741951545180,10.47927,1908.6,1908.4,0.07780055]
[1741951545595,5.23971,1908.5,1908.4,0.07780055]
[1741951545800,5.30521036,1908.5,1908.4,0.07780055]
[1741951545972,5.23958,1908.6,1908.4,0.07780055]
[1741951546173,5.3052077,1908.5,1908.4,0.07780055]
[1741951546804,5.23958,1908.6,1908.4,0.07780055]
[1741951547102,5.30507824,1908.6,1908.4,0.07780055]
[1741951547304,5.30467832,1908.7,1908.4,5.31776055]
[1741951547472,0.06549832,1908.7,1908.4,5.31767055]
[1741951547677,0.06549832,1908.7,1908.4,11.69095261]
[1741951547876,8.30445219,1908.8,1908.4,6.45108261]
[1741951548087,13.54355219,1908.8,1908.4,5.31762055]
[1741951548288,13.47806,1908.8,1908.4,5.31762055]
[1741951549112,5.23919,1908.7,1908.4,5.31762055]
[1741951549318,5.30468223,1908.7,1908.4,5.31762055]
[1741951550110,8.23896,1908.8,1908.5,5.23961]
[1741951550278,13.54352219,1908.8,1908.4,5.31762055]
[1741951550479,3.0,1908.8,1908.5,5.23968]
[1741951550812,6.03,1908.9,1908.6,0.8154]
[1741951550813,16.57298969,1908.9,1908.6,0.8154]
[1741951550984,5.30438909,1908.8,1908.4,6.13315055]
[1741951551180,5.23926,1908.7,1908.4,6.13317055]
[1741951551497,5.2389,1908.8,1908.5,5.2397]
[1741951554520,5.23935,1908.7,1908.4,5.31773055]
[1741951554683,5.23889,1908.8,1908.4,5.31773055]
[1741951554883,5.23924,1908.7,1908.4,0.07780055]
[1741951555186,5.23968,1908.6,1908.4,0.07780055]
[1741951555812,10.47935,1908.6,1908.4,0.07780055]
[1741951556015,5.23967,1908.6,1908.4,0.07780055]
[1741951556613,5.23971,1908.5,1908.4,0.07780055]
[1741951557883,5.3052109,1908.5,1908.4,0.07780055]
[1741951558814,6.0869109,1908.5,1908.4,0.07780055]
[1741951559014,15.1069109,1908.5,1908.4,5.5e-07]
[1741951559218,15.04141,1908.5,1908.4,5.5e-07]
[1741951559387,35.54384203,1908.5,1908.4,5.5e-07]
[1741951559591,36.09384203,1908.5,1908.4,5.5e-07]
[1741951562703,5.24218,1907.7,1907.5,0.08576537]
[1741951562911,5.24218,1907.6,1907.5,0.08576537]
[1741951564653,9.47534002,1907.6,1907.5,0.08576537]
[1741951565013,5.24218,1907.6,1907.5,0.08576537]
[1741951565151,5.30771235,1907.6,1907.5,0.08576537]
[1741951567836,9.47467002,1907.9,1907.6,0.8148]
[1741951568037,5.08452499,1907.9,1907.6,0.8148]
[1741951568260,10.32594499,1907.9,1907.6,1.42908354]
[1741951568829,5.24165,1907.8,1907.6,1.42908354]
[1741951569028,5.24165,1907.8,1907.5,0.08576537]
[1741951569029,5.24191,1907.7,1907.5,0.08576537]
[1741951569253,5.24218,1907.6,1907.5,0.08576537]
[1741951569433,5.30770555,1907.6,1907.5,0.08576537]
[1741951573246,0.06552555,1907.6,1907.5,0.08576537]
[1741951573446,5.30730618,1907.8,1907.5,0.08576537]
[1741951573627,10.54911618,1907.8,1907.5,0.08576537]
[1741951574059,5.24191,1907.7,1907.5,0.08576537]
[1741951574232,5.30770627,1907.6,1907.5,0.08576537]
[1741951575640,5.24218,1907.6,1907.5,0.08576537]
[1741951577163,0.06553237,1907.7,1907.5,0.08576537]
[1741951577349,15.27216002,1907.9,1907.6,5.24218]
[1741951577350,3.06552423,1907.8,1907.6,5.24218]
[1741951577553,8.30715423,1907.8,1907.5,0.08576537]
[1741951577745,3.06552423,1907.8,1907.5,0.08576537]
[1741951578069,8.30720423,1907.8,1907.5,0.08576537]
[1741951578946,0.06552423,1907.8,1907.5,6.47590251]
[1741951579442,16.50295,1907.9,1907.5,6.47583251]
[1741951579738,6.02,1907.9,1907.6,6.01044]
[1741951579942,6.08551967,1907.9,1907.6,6.01044]
[1741951580162,11.32692967,1907.9,1907.6,0.7684]
[1741951580460,5.24141,1907.9,1907.6,0.7684]
[1741951580669,5.30692976,1907.9,1907.6,6.01057]
[1741951580865,5.30692976,1907.9,1907.6,7.25920425]
[1741951581763,5.019,1908.0,1907.6,2.01703425]
[1741951582063,13.54802963,1908.0,1907.6,6.01057]
[1741951582270,5.24147,1907.9,1907.6,6.01057]
[1741951582938,5.24147,1907.9,1907.6,0.7684]
[1741951583138,5.24167,1907.8,1907.6,0.7684]
[1741951583335,5.30699017,1907.9,1907.6,0.7684]
[1741951584770,5.24147,1907.9,1907.6,7.14443954]
[1741951584977,5.3069897,1907.9,1907.6,7.14443954]
[1741951585157,5.3069897,1907.9,1907.6,1.90228954]
[1741951586567,10.5485197,1907.9,1907.6,1.90228954]
[1741951588376,5.3069897,1907.9,1907.6,1.90228954]
[1741951588574,5.3069897,1907.9,1907.6,0.7684]
[1741951588772,0.8568197,1907.9,1907.5,0.08576537]
[1741951589070,5.24205,1907.7,1907.5,0.08576537]
[1741951590155,5.24218,1907.6,1907.5,0.08576537]
[1741951592479,6.01778,1907.6,1907.5,0.08576537]
[1741951592849,6.08331314,1907.6,1907.5,0.08576537]
[1741951593791,11.44900947,1907.6,1907.5,0.08576537]
[1741951593953,11.38347633,1907.6,1907.5,0.08576537]
[1741951594478,14.38347633,1907.6,1907.5,0.08576537]
[1741951596580,13.25094002,1907.6,1907.5,0.08576537]
[1741951597889,19.27094002,1907.6,1907.5,0.08576537]
[1741951598855,14.26218,1907.6,1907.5,0.08576537]
[1741951602774,15.05268,1907.6,1907.5,0.08576537]
[1741951608973,14.26218,1907.6,1907.5,0.08576537]
[1741951611669,16.715049,1907.6,1907.5,0.08576537]
[1741951614098,14.26218,1907.6,1907.5,0.08576537]
[1741951617100,11.26218,1907.6,1907.5,0.90916537]
[1741951617299,11.26218,1907.6,1907.5,0.08576537]
[1741951619699,6.02,1907.6,1907.5,0.08576537]
[1741951621317,5.24218,1907.6,1907.5,0.08576537]
[1741951621479,5.30771334,1907.6,1907.5,0.08576537]
[1741951622085,5.242,1907.7,1907.5,0.08576537]
[1741951622302,7.84768527,1907.7,1907.5,0.08576537]
[1741951622615,10.84768527,1907.7,1907.6,0.7844]
[1741951622799,10.78215194,1907.7,1907.6,0.7844]
[1741951623112,5.24218,1907.6,1907.5,0.08576537]
[1741951623320,5.30771336,1907.6,1907.5,0.08576537]
[1741951623481,0.06553336,1907.6,1907.5,0.08576537]
[1741951624917,5.30771336,1907.6,1907.5,0.08576537]
[1741951625083,0.06553336,1907.6,1907.5,0.08576537]
[1741951625406,10.78215194,1907.7,1907.5,0.08576537]
[1741951625611,0.06553335,1907.6,1907.5,0.08576537]
[1741951626407,10.78215194,1907.7,1907.5,0.70659851]
[1741951626408,3.0,1907.7,1907.5,0.70659851]
[1741951626614,3.06552853,1907.7,1907.5,0.70659851]
[1741951627321,5.60568047,1907.7,1907.5,0.08576537]
[1741951630312,5.54015194,1907.7,1907.5,5.32822537]
[1741951630522,3.0,1907.7,1907.6,0.7993]
[1741951632422,25.12311194,1908.1,1907.7,5.24166]
[1741951632635,19.88215194,1908.1,1907.8,0.8014]
[1741951632930,7.55615194,1908.4,1908.1,6.04205]
[1741951633092,2.54015194,1908.5,1908.2,5.24046]
[1741951633292,0.06550344,1908.5,1908.2,5.24046]
[1741951633511,0.06550344,1908.5,1908.3,6.02595]
[1741951633716,5.23927,1908.7,1908.3,6.02595]
[1741951633909,7.77942194,1908.7,1908.3,11.26604]
[1741951634110,7.77942194,1908.7,1908.3,6.02579]
[1741951634111,13.0842801,1908.7,1908.3,6.02579]
[1741951634316,7.77988194,1908.5,1908.3,0.7857]
[1741951634532,7.84538074,1908.5,1908.2,0.7807]
[1741951634819,2.60565074,1908.5,1908.2,6.02123]
[1741951635393,7.77966194,1908.6,1908.2,6.02123]
[1741951635587,7.77966194,1908.6,1908.2,11.2616]
[1741951635823,5.30500977,1908.6,1908.3,1.12616]
[1741951636518,0.06549977,1908.6,1908.3,6.36641]
[1741951636905,13.47868,1908.7,1908.3,6.36641]
[1741951637293,0.06549814,1908.6,1908.3,6.36641]
[1741951637597,5.23985,1908.5,1908.2,0.7807]
[1741951638603,0.06549883,1908.5,1908.2,0.7807]
[1741951638806,5.30531883,1908.5,1908.2,0.7807]
[1741951639491,5.24006,1908.4,1908.2,0.7807]
[1741951639690,10.54520883,1908.5,1908.2,0.7807]
[1741951639894,10.54520883,1908.5,1908.2,1.382845]
[1741951640123,0.06549883,1908.5,1908.0,0.8096]
[1741951640326,5.24038,1908.3,1908.0,0.8096]
[1741951640524,5.30588643,1908.3,1908.0,0.8096]
[1741951640724,5.24056,1908.2,1908.0,0.8096]
[1741951641024,10.48129,1908.2,1908.0,0.8096]
[1741951641200,5.24056,1908.2,1908.0,0.8096]
[1741951642803,5.30631763,1908.1,1907.8,6.94021044]
[1741951643127,5.24081,1908.1,1907.9,0.69402104]
[1741951644503,5.24068,1908.2,1907.9,0.69402104]
[1741951644704,5.30645397,1908.1,1907.9,0.69402104]
[1741951645005,5.30645397,1908.1,1907.8,0.85021044]
[1741951645204,5.24111,1908.0,1907.8,0.85021044]
[1741951645532,5.30687407,1907.9,1907.8,0.08001044]
[1741951646228,13.31418496,1907.9,1907.8,0.08001044]
[1741951646428,13.24867089,1907.9,1907.8,0.08001044]
[1741951646834,15.59904898,1907.9,1907.8,0.08001044]
[1741951650334,21.61904898,1907.9,1907.8,4.4e-07]
[1741951650535,21.63244898,1907.9,1907.8,4.4e-07]
[1741951650734,22.02378897,1907.9,1907.8,4.4e-07]
[1741951655341,19.67341088,1907.9,1907.8,4.4e-07]
[1741951655511,24.68841088,1907.9,1907.8,4.4e-07]
[1741951656412,23.89711088,1907.9,1907.8,4.4e-07]
[1741951666359,23.89711088,1907.9,1907.8,4.4e-07]
[1741951668059,24.68511088,1907.9,1907.8,4.4e-07]
[1741951669161,20.45569999,1907.9,1907.8,4.4e-07]
[1741951669359,23.44832208,1907.9,1907.8,4.4e-07]
[1741951671960,19.66769999,1907.9,1907.8,4.4e-07]
[1741951676141,20.45899999,1907.9,1907.8,4.4e-07]
[1741951676346,21.17701202,1907.9,1907.8,4.4e-07]
[1741951677972,21.72701202,1907.9,1907.8,4.4e-07]
[1741951683972,16.16201202,1907.9,1907.8,4.4e-07]
[1741951684173,20.45799999,1907.9,1907.8,4.4e-07]
[1741951684355,23.50965096,1907.9,1907.8,4.4e-07]
[1741951686877,17.70435096,1907.9,1907.8,4.4e-07]
[1741951687176,11.65269999,1907.9,1907.8,4.4e-07]
[1741951687378,16.66669999,1907.9,1907.8,4.4e-07]
[1741951687547,19.66669999,1907.9,1907.8,4.4e-07]
[1741951688176,6.02,1907.9,1907.8,4.4e-07]
[1741951688476,14.3268857,1907.9,1907.8,4.4e-07]
[1741951688676,11.26136,1907.9,1907.8,4.4e-07]
[1741951688975,14.26136,1907.9,1907.8,4.4e-07]
[1741951689548,3.0,1907.9,1907.8,0.77230044]
[1741951689748,0.06551939,1908.0,1907.9,0.8165]
[1741951689949,0.06551807,1908.0,1907.9,0.8165]
[1741951690875,22.57887,1908.1,1907.9,0.8165]
[1741951691077,0.06551852,1908.0,1907.9,0.8165]
[1741951691385,5.30660852,1908.0,1907.9,0.8165]
[1741951692183,0.06551852,1908.0,1907.9,0.8165]
[1741951692564,22.57887,1908.1,1907.9,0.8165]
[1741951693267,5.30660809,1908.0,1907.9,0.8165]
[1741951693583,22.57887,1908.1,1907.9,0.8165]
[1741951693756,0.06551858,1908.0,1907.9,0.8165]
[1741951694180,5.30660858,1908.0,1907.9,0.8165]
[1741951695553,8.24136,1907.9,1907.8,4.4e-07]
[1741951695761,14.79202086,1907.9,1907.8,4.4e-07]
[1741951700187,16.13332086,1907.9,1907.8,4.4e-07]
[1741951701178,5.24218,1907.6,1907.5,5.81e-06]
[1741951701380,24.33834082,1907.6,1907.5,5.81e-06]
[1741951701584,27.23082597,1907.6,1907.5,5.81e-06]
[1741951707987,26.46262597,1907.6,1907.5,5.81e-06]
[1741951708507,26.86242619,1907.6,1907.5,5.81e-06]
[1741951710511,18.89139111,1907.6,1907.5,5.81e-06]
[1741951710693,23.90439111,1907.6,1907.5,5.81e-06]
[1741951713714,18.89139111,1907.6,1907.5,5.81e-06]
[1741951713924,23.90439111,1907.6,1907.5,5.81e-06]
[1741951714502,18.89139111,1907.6,1907.5,5.81e-06]
[1741951714806,23.90439111,1907.6,1907.5,5.81e-06]
[1741951715791,23.50459089,1907.6,1907.5,5.81e-06]
[1741951716318,3.0,1907.6,1907.5,5.81e-06]
[1741951716488,3.0,1907.7,1907.5,0.76240581]
[1741951717321,3.0,1907.7,1907.5,1.12476139]
[1741951717618,3.0,1907.7,1907.6,0.7723]
[1741951718314,11.26172,1907.8,1907.6,0.7723]
[1741951720889,5.24172,1907.8,1907.6,0.7723]
[1741951721520,5.24136,1907.9,1907.7,0.7733]
[1741951721834,3.0,1908.2,1908.0,0.7539]
[1741951722138,10.54639049,1908.3,1908.0,0.7539]
[1741951722590,10.48147,1908.2,1908.0,0.7539]
[1741951723118,5.24068,1908.2,1908.0,0.7539]
[1741951723605,5.30618965,1908.2,1908.0,0.7539]
[1741951724206,8.24028,1908.3,1908.0,0.7539]
[1741951724409,13.54622949,1908.3,1908.1,0.7681]
[1741951724602,13.48072,1908.3,1908.1,0.7681]
[1741951724923,8.24028,1908.3,1908.1,0.7681]
[1741951725136,22.58201,1908.8,1908.1,0.7681]
[1741951725137,6.02,1908.7,1908.1,0.7681]
[1741951725318,6.02,1908.7,1908.4,0.7813]
[1741951725509,17.343,1908.8,1908.6,0.7813]
[1741951725700,5.23899,1908.8,1908.7,0.7813]
[1741951726317,5.31412689,1908.9,1908.7,0.7813]
[1741951726318,0.07548689,1908.9,1908.7,0.7813]
[1741951726520,0.01,1908.9,1908.7,0.7813]
[1741951726908,0.01,1908.9,1908.8,5.23889]
[1741951727113,0.01,1908.9,1908.8,0.7714]
[1741951727314,0.01,1908.9,1908.8,1.372456]
[1741951727733,0.01,1908.9,1908.8,0.601056]
[1741951727931,0.01,1908.9,1908.8,6.668146]
[1741951728834,0.01,1908.9,1908.8,6.72052529]
[1741951729021,0.01,1908.9,1908.8,6.668146]
[1741951730906,0.01,1908.9,1908.8,1.429256]
[1741951731213,0.01,1908.9,1908.8,0.8282]
[1741951734709,0.01,1908.9,1908.8,6.06709]
[1741951734912,0.01,1908.9,1908.8,0.8282]
[1741951736529,0.01,1908.9,1908.8,6.06709]
[1741951736732,0.01,1908.9,1908.8,0.8282]
[1741951736937,0.01,1908.9,1908.8,1.434931]
[1741951739174,0.01,1908.9,1908.8,6.673821]
[1741951740320,0.01,1908.9,1908.8,1.434931]
[1741951741047,0.01,1908.9,1908.8,6.673821]
[1741951741547,0.01,1908.9,1908.8,1.434931]
[1741951741952,0.01,1908.9,1908.8,0.8282]
[1741951743257,0.01,1908.9,1908.8,6.06709]
[1741951743547,0.01,1908.9,1908.8,0.8282]
[1741951743749,5.24861,1908.9,1908.5,5.23964]
[1741951743941,5.24861,1908.9,1908.6,0.7639]
[1741951744142,5.24861,1908.9,1908.6,1.47082631]
[1741951744451,0.01,1908.9,1908.6,1.47082631]
[1741951744656,5.23966,1908.6,1908.1,6.02794]
[1741951744855,5.23963,1908.6,1908.2,5.24043]
[1741951745052,5.23961,1908.6,1908.2,5.24043]
[1741951745353,10.54481738,1908.6,1908.3,0.524043]
[1741951745552,5.30510738,1908.6,1908.3,0.524043]
[1741951745754,5.23961,1908.6,1908.3,0.524043]
[1741951745940,5.30468738,1908.7,1908.4,0.8234]
[1741951746141,5.23919,1908.7,1908.4,0.8234]
[1741951746346,10.54404738,1908.7,1908.4,1.429741]
[1741951746547,5.23947,1908.6,1908.4,1.429741]
[1741951747958,5.23971,1908.5,1908.4,1.429741]
[1741951748142,5.30520753,1908.5,1908.2,0.7646]
[1741951748348,5.23971,1908.5,1908.2,0.7646]
[1741951749235,5.24026,1908.3,1908.2,0.7646]
[1741951749440,5.24026,1908.3,1907.9,6.05632]
[1741951749641,5.24026,1908.3,1908.0,0.605632]
[1741951750643,5.23999,1908.4,1908.1,0.7911]
[1741951751060,5.30522395,1908.5,1908.1,6.0319]
[1741951751367,5.30498171,1908.6,1908.4,0.7658]
[1741951751863,3.0,1908.6,1908.4,0.7658]
[1741951752868,8.23948,1908.6,1908.4,0.7658]
[1741951754467,13.47911,1908.6,1908.4,0.7658]
[1741951754674,8.23948,1908.6,1908.4,0.7658]
[1741951754839,3.0,1908.6,1908.4,0.7658]
[1741951755040,3.0,1908.6,1908.4,6.00577]
[1741951755240,3.0,1908.6,1908.4,0.7658]
[1741951756064,3.0,1908.6,1908.4,6.00555]
[1741951756564,0.06549366,1908.7,1908.5,5.23966]
[1741951756748,8.30444993,1908.8,1908.4,1.366355]
[1741951757244,8.30444993,1908.8,1908.4,6.606185]
[1741951757638,8.30444993,1908.8,1908.4,11.846045]
[1741951757972,8.24864,1908.9,1908.6,6.04463]
[1741951758266,5.23916,1908.7,1908.3,5.24007]
[1741951758471,5.23916,1908.7,1908.4,6.04527]
[1741951758870,8.24862,1908.9,1908.5,5.2920422]
[1741951759072,8.31411025,1908.9,1908.5,5.23965]
[1741951759237,13.55290025,1908.9,1908.5,5.23965]
[1741951759436,13.48741,1908.9,1908.5,6.36814]
[1741951759976,5.239,1908.8,1908.5,1.12849]
[1741951760144,5.30467759,1908.7,1908.4,0.8053]
[1741951760345,10.54403759,1908.7,1908.4,0.8053]
[1741951760573,5.30467759,1908.7,1908.4,0.8053]
[1741951760741,10.54404759,1908.7,1908.4,0.8053]
[1741951760942,5.23961,1908.6,1908.2,6.07002]
[1741951761171,5.2398,1908.5,1908.2,0.8295]
[1741951762179,5.2398,1908.5,1908.2,6.07001]
[1741951762342,5.23946,1908.6,1908.2,11.31044]
[1741951762543,5.23946,1908.6,1908.2,11.31025]
[1741951762745,5.30495749,1908.6,1908.2,6.06982]
[1741951763086,10.54458749,1908.6,1908.3,0.606982]
[1741951763283,0.06549749,1908.6,1908.3,0.606982]
[1741951763488,5.30478741,1908.7,1908.3,0.606982]
[1741951763645,5.2395,1908.6,1908.3,5.24]
[1741951763844,5.2395,1908.6,1908.2,6.122338]
[1741951764059,5.1895,1908.6,1908.2,11.362738]
[1741951764399,5.1895,1908.6,1908.2,11.31026]
[1741951764573,5.1895,1908.6,1908.3,6.371216]
[1741951765223,10.42912,1908.6,1908.3,1.131026]
[1741951765490,10.49461742,1908.6,1908.3,1.131026]
[1741951765865,5.2398,1908.5,1908.3,1.131026]
[1741951766062,10.47978,1908.5,1908.2,0.8295]
[1741951766993,5.24,1908.4,1908.2,0.8295]
[1741951767362,5.2398,1908.5,1908.2,6.07003]
[1741951768759,5.2398,1908.5,1908.2,0.8295]
[1741951768959,5.23999,1908.4,1908.2,1.436528]
[1741951769159,5.23999,1908.4,1908.2,0.8295]
[1741951770265,5.23925,1908.7,1908.2,6.07001]
[1741951770485,5.23957,1908.6,1908.2,6.07001]
[1741951770687,10.47918,1908.6,1908.2,6.07001]
[1741951771695,5.23957,1908.6,1908.2,6.07001]
[1741951771884,5.23957,1908.6,1908.3,0.607001]
[1741951773509,5.23971,1908.5,1908.2,0.8295]
[1741951773821,10.47962,1908.5,1908.2,0.8295]
[1741951773986,5.23971,1908.5,1908.2,0.8295]
[1741951774414,6.00171,1908.5,1908.1,5.24064]
[1741951774614,6.00171,1908.5,1908.1,10.48134]
[1741951774824,6.00171,1908.5,1908.2,1.048134]
[1741951775126,5.23971,1908.5,1908.2,6.288664]
[1741951776019,5.23948,1908.6,1908.2,6.288664]
[1741951776222,10.47909,1908.6,1908.2,6.288554]
[1741951778127,5.23976,1908.5,1908.2,6.288554]
[1741951779028,5.23976,1908.5,1908.2,1.048134]
[1741951779231,5.24014,1908.4,1908.2,1.048134]
[1741951779416,5.24014,1908.4,1908.0,11.897462]
[1741951780537,5.24014,1908.4,1908.1,5.24076]
[1741951781034,5.23976,1908.5,1908.1,10.48134]
[1741951781238,5.23976,1908.5,1908.1,10.48124]
[1741951781723,10.47969,1908.5,1908.1,5.24058]
[1741951781910,10.47969,1908.5,1908.2,0.524058]
[1741951782112,5.24002,1908.4,1908.2,0.524058]
[1741951783640,5.23976,1908.5,1908.2,0.524058]
[1741951785242,10.47967,1908.5,1908.2,0.524058]
[1741951785942,5.2401,1908.4,1908.2,0.524058]
[1741951786111,5.24039,1908.3,1908.0,1.415532]
[1741951786754,5.24039,1908.3,1908.0,6.656512]
[1741951789256,6.03133,1908.4,1908.0,6.656512]
[1741951789411,11.27152,1908.4,1908.0,6.656512]
[1741951789611,11.27152,1908.4,1908.1,0.6656512]
[1741951790208,5.23985,1908.5,1908.1,11.1470012]
[1741951790438,10.47976,1908.5,1908.1,5.9063112]
[1741951790643,5.23985,1908.5,1908.1,11.1469612]
[1741951790842,9.03076,1908.6,1908.1,11.1469612]
[1741951790843,12.05035,1908.8,1908.3,0.7588]
[1741951791009,3.0,1908.7,1908.4,5.2398]
[1741951791415,8.23923,1908.7,1908.4,5.2398]
[1741951792426,8.23923,1908.7,1908.4,5.23992]
[1741951795068,3.0,1908.7,1908.4,10.47978]
[1741951795245,3.0,1908.7,1908.5,6.287558]
[1741951795635,5.24874,1908.9,1908.5,11.527118]
[1741951795838,5.24874,1908.9,1908.6,0.8131]
[1741951795839,3.0,1908.8,1908.6,0.8131]
[1741951796676,0.01,1908.9,1908.8,6.04869]
[1741951796974,0.01,1908.9,1908.8,8.15039409]
[1741951800457,0.01,1908.9,1908.8,7.60039409]
[1741951801041,0.01,1908.9,1908.7,6.09]
[1741951801670,0.01,1908.9,1908.7,11.32903]
[1741951801887,0.01,1908.9,1908.7,16.56807]
[1741951802056,0.01,1908.9,1908.8,5.23889]
[1741951803087,0.01,1908.9,1908.8,6.00759]
[1741951803275,0.01,1908.9,1908.8,7.132252]
[1741951803666,0.01,1908.9,1908.8,7.682252]
[1741951808984,0.5425,1908.9,1908.8,7.682252]
[1741951809696,0.5425,1908.9,1908.8,8.75673025]